fUSD/lending_fUSD_20260331
["ID","MTS","AMOUNT","RATE_DAILY","PERIOD"]
[419153658,1774954244313,-621.0,0.00015734,2]
[419153659,1774954244330,-6013.0,0.00015734,2]
[419153660,1774954244346,-2469.0,0.00015734,2]
[419153661,1774954244360,-1422.0,0.00015747,2]
[419153662,1774954244374,-2808.0,0.0001576,2]
[419153663,1774954244388,-157.0,0.00015769,2]
[419153664,1774954244403,-150.0,0.000158,2]
[419153665,1774954244417,-196.1393,0.000158,7]
[419153666,1774954244431,-500.0,0.00015821,2]
[419153667,1774954244445,-150.0,0.00015822,2]
[419153668,1774954244460,-161.0,0.0001584,2]
[419153669,1774954244475,-970.35523,0.0001584,2]
[419153670,1774954244490,-970.35522,0.0001584,2]
[419153671,1774954244503,-970.35522,0.0001584,2]
[419153672,1774954244517,-1422.0,0.00015846,2]
[419153673,1774954244532,-1087.65,0.0001589,2]
[419153674,1774954244546,-250.0,0.0001589,2]
[419153675,1774954244560,-5000.0,0.000159,2]
[419153676,1774954244574,-352.17160476,0.000159,2]
[419153677,1774954244589,-313.0,0.000159,2]
[419153678,1774954244602,-13832.01797518,0.000159,2]
[419153679,1774954244616,-306.0,0.000159,2]
[419153680,1774954244630,-5516.72517977,0.000159,2]
[419153681,1774954244643,-1000.0,0.000159,2]
[419153682,1774954244658,-255.0,0.00015929,2]
[419153683,1774954244672,-479.97,0.00015936,2]
[419153684,1774954244687,-400.0,0.0001597,2]
[419153685,1774954244701,-400.0,0.0001597,2]
[419153686,1774954244716,-700.0,0.0001597,2]
[419153687,1774954244731,-577.99108717,0.00015972,2]
[419153688,1774954244745,-500.0,0.00015972,2]
[419153689,1774954244760,-184.79837749,0.00015972,2]
[419153690,1774954244775,-500.0,0.00015973,2]
[419153691,1774954244790,-500.0,0.00015973,2]
[419153692,1774954244805,-500.0,0.00015973,2]
[419153693,1774954244819,-500.0,0.00015973,2]
[419153694,1774954244833,-500.0,0.00015973,2]
[419153695,1774954244846,-500.0,0.00015973,2]
[419153696,1774954244859,-500.58525136,0.00015973,2]
[419153697,1774954244874,-500.0,0.00015973,2]
[419153698,1774954244888,-500.65177654,0.00015973,2]
[419153699,1774954244901,-500.0,0.00015973,2]
[419153700,1774954244917,-500.0,0.00015973,2]
[419153701,1774954244932,-320.33958231,0.00015973,2]
[419153702,1774954244946,-500.0,0.00015973,2]
[419153703,1774954244960,-500.0,0.00015973,2]
[419153704,1774954244975,-500.0,0.00015973,2]
[419153705,1774954244990,-150.0,0.0001599,2]
[419153706,1774954245004,-164.64394981,0.0001599,2]
[419153707,1774954245017,-230.20087434,0.00015999,2]
[419153708,1774954245032,-224.00440411,0.00015999,2]
[419153709,1774954245047,-155.0,0.00015999,2]
[419153710,1774954245061,-190.47712151,0.00016,2]
[419153711,1774954245077,-169.88975628,0.00016,2]
[419153712,1774954245092,-184.03093427,0.00016,2]
[419153713,1774954245107,-150.0,0.00016,2]
[419153714,1774954245120,-150.0,0.00016,2]
[419153715,1774954245135,-221.85964442,0.00016,2]
[419153716,1774954245148,-151.23971436,0.00016,2]
[419153717,1774954245163,-150.0,0.00016,2]
[419153718,1774954245179,-164.49225608,0.00016,2]
[419153719,1774954245194,-297107.28344544,0.00016,2]
[419153720,1774954245208,-175.22,0.00016,2]
[419153721,1774954245224,-107496.35623666,0.00016,2]
[419153722,1774954245239,-194026.98082545,0.00016,2]
[419153723,1774954245253,-104752.10452643,0.00016,2]
[419153724,1774954245266,-326206.64307804,0.00016,2]
[419153726,1774954246431,-197.882365,0.0001568,7]
[419153727,1774954246453,-16979.21902076,0.00016,2]
[419153728,1774954246464,-510.53058261,0.00016,2]
[419153729,1774954246496,-1449.82066342,0.00016,2]
[419153730,1774954246507,-2926.44899994,0.00016,2]
[419153731,1774954246519,-2663.999901,0.00016,2]
[419153732,1774954352238,300.0,2e-05,5]
[419153735,1774955157207,582.41755,0.000106,2]
[419153736,1774955165976,157.0,2e-05,3]
[419153737,1774955187710,302.07,5e-05,2]
[419153738,1774955253243,-227.54245,0.000106,2]
[419153739,1774955253264,-1700.0,0.00013808,2]
[419153740,1774955253285,-108.76545512,0.00013808,2]
[419153742,1774955347140,-2891.23454488,0.00013808,2]
[419153743,1774955347161,-1382.22505844,0.00013808,2]
[419153744,1774955363125,-117.77494156,0.00013808,2]
[419153751,1774955431930,-500.0,0.00014461,2]
[419153752,1774955431941,-39.13572323,0.00014499,2]
[419153753,1774955432074,-160.86427677,0.00014499,2]
[419153754,1774955432085,-3240.0,0.00014519,2]
[419153755,1774955432095,-150.0,0.00014519,2]
[419153756,1774955432104,-464.9,0.00014607,2]
[419153757,1774955432114,-2808.0,0.000148,2]
[419153758,1774955432123,-1571.0,0.000148,2]
[419153759,1774955432135,-1571.0,0.000148,2]
[419153760,1774955432144,-2182.88,0.00014802,2]
[419153761,1774955432154,-500.0,0.00014804,2]
[419153762,1774955432164,-500.0,0.00014804,2]
[419153763,1774955432174,-500.0,0.00014804,2]
[419153764,1774955432184,-500.0,0.00014804,2]
[419153765,1774955432194,-209.55,0.00014842,2]
[419153766,1774955432204,-352.0,0.00014949,2]
[419153767,1774955432214,-166.66,0.00014954,2]
[419153768,1774955432223,-311.0,0.00014967,2]
[419153769,1774955432233,-150.0,0.00014987,2]
[419153771,1774955432243,-151.0,0.00014988,2]
[419153772,1774955432253,-200.0,0.00014988,2]
[419153773,1774955432262,-151.0,0.00014988,2]
[419153774,1774955432272,-9999.99,0.00014997,2]
[419153775,1774955432282,-23038.84,0.00014997,2]
[419153776,1774955432291,-7017.12,0.00014997,2]
[419153777,1774955432302,-1552.88,0.00014997,2]
[419153778,1774955432311,-2174.93,0.00014997,2]
[419153780,1774955432321,-150.99,0.00014997,2]
[419153781,1774955432331,-431.36,0.00014997,2]
[419153782,1774955432341,-999.99,0.00014997,2]
[419153783,1774955432351,-252.0,0.00015001,2]
[419153784,1774955432361,-158.71741227,0.00015016,2]
[419153785,1774955432371,-3458.0,0.00015037,2]
[419153786,1774955432380,-300.82,0.00015068,2]
[419153787,1774955432390,-200.0,0.00015078,2]
[419153788,1774955432401,-439.53672856,0.00015083,2]
[419153789,1774955432411,-300.0,0.00015083,2]
[419153790,1774955432420,-195.0,0.00015083,2]
[419153791,1774955432430,-500.0,0.00015083,2]
[419153792,1774955432439,-29400.07339781,0.0001511,2]
[419153793,1774955432458,-5380.0617081,0.0001511,2]
[419153794,1774955432471,-64597.84159409,0.0001511,2]
[419153795,1774955432482,-2033.84087772,0.00015168,2]
[419153797,1774955437954,-150.0,0.00014519,2]
[419153798,1774955437964,-390.01220046,0.00015168,2]
[419153801,1774955438060,-1086.4395005,0.00015168,2]
[419153802,1774955438071,-5055.46298043,0.00015168,2]
[419153803,1774955438080,-200.0,0.00015168,2]
[419153804,1774955438089,-203.78285944,0.00015168,2]
[419153805,1774955438099,-500.0,0.00015168,2]
[419153806,1774955438108,-204.97581611,0.00015168,2]
[419153807,1774955438117,-151.0,0.00015168,2]
[419153808,1774955438126,-174.61919142,0.00015168,2]
[419153809,1774955438136,-187.78006524,0.00015168,2]
[419153810,1774955438146,-262.90206542,0.00015168,2]
[419153811,1774955438156,-368.57702194,0.00015173,2]
[419153812,1774955438307,-131.42297806,0.00015173,2]
[419153813,1774955438318,-500.0,0.00015173,2]
[419153814,1774955438329,-500.0,0.00015173,2]
[419153815,1774955438339,-500.0,0.00015173,2]
[419153816,1774955438349,-500.0,0.00015173,2]
[419153817,1774955438360,-3000.0,0.00015178,2]
[419153818,1774955438371,-1500.0,0.00015178,2]
[419153819,1774955438380,-500.0,0.00015178,2]
[419153820,1774955438392,-4325.0,0.00015213,2]
[419153821,1774955438401,-8882.6885148,0.00015223,2]
[419153822,1774955438411,-500.0,0.00015223,2]
[419153823,1774955438420,-151.0,0.00015223,2]
[419153824,1774955438431,-403.07238079,0.00015223,2]
[419153825,1774955438441,-4944.36506226,0.00015273,2]
[419153826,1774955438450,-523.9831809,0.00015278,2]
[419153827,1774955438460,-500.0,0.00015287,2]
[419153828,1774955438470,-500.0,0.00015287,2]
[419153829,1774955438480,-500.0,0.00015287,2]
[419153830,1774955438491,-264.4837405,0.00015287,2]
[419153831,1774955438500,-500.0,0.00015287,2]
[419153832,1774955438511,-500.0,0.00015287,2]
[419153833,1774955438522,-500.0,0.00015287,2]
[419153834,1774955438531,-500.0,0.00015287,2]
[419153835,1774955438540,-150.0,0.00015288,2]
[419153836,1774955438550,-150.0,0.00015288,2]
[419153837,1774955438559,-150.0,0.00015288,2]
[419153838,1774955438568,-208.67647461,0.00015288,2]
[419153839,1774955438578,-150.0,0.00015288,2]
[419153840,1774955438587,-150.0,0.00015288,2]
[419153841,1774955438597,-150.0,0.00015288,2]
[419153842,1774955438606,-150.0,0.00015288,2]
[419153843,1774955438616,-150.0,0.00015288,2]
[419153844,1774955438625,-150.0,0.00015288,2]
[419153845,1774955438635,-2000.0,0.000153,2]
[419153846,1774955438647,-1000.0,0.000153,2]
[419153847,1774955438656,-281.1618342,0.00015351,2]
[419153848,1774955438666,-307.54244609,0.00015356,2]
[419153849,1774955438675,-2510.0,0.00015373,2]
[419153850,1774955438685,-1571.0,0.000154,2]
[419153851,1774955438694,-2808.0,0.000154,2]
[419153852,1774955438704,-162.0,0.000154,2]
[419153853,1774955438713,-434.0,0.00015418,2]
[419153854,1774955438723,-434.0,0.00015426,2]
[419153855,1774955438732,-434.0,0.00015472,2]
[419153856,1774955438742,-434.0,0.00015481,2]
[419153857,1774955438751,-3778.0,0.00015489,2]
[419153858,1774955438761,-3829.37,0.00015507,2]
[419153859,1774955438770,-1571.0,0.0001552,2]
[419153860,1774955438780,-434.0,0.00015521,2]
[419153861,1774955438788,-150.0,0.0001553,2]
[419153862,1774955438798,-2469.0,0.00015543,2]
[419153863,1774955438808,-555.0,0.00015555,2]
[419153864,1774955438817,-2500.0,0.0001558,2]
[419153865,1774955438826,-434.0,0.0001561,2]
[419153866,1774955438836,-150.0,0.00015627,2]
[419153867,1774955438845,-1304.9639867,0.0001568,2]
[419153868,1774955438854,-564.26975577,0.0001568,2]
[419153869,1774955438864,-261.922412,0.0001568,7]
[419153870,1774955438874,-160.0,0.0001568,7]
[419153871,1774955438884,-327.430615,0.0001568,7]
[419153872,1774955438894,-494.86123,0.0001568,7]
[419153873,1774955438904,-291.152026,0.0001568,7]
[419153874,1774955438914,-402.77947,0.0001568,7]
[419153875,1774955438923,-243.983415,0.0001568,7]
[419153876,1774955438932,-160.0,0.0001568,7]
[419153877,1774955438941,-311.778257,0.0001568,7]
[419153878,1774955438950,-463.556515,0.0001568,7]
[419153879,1774955438960,-200.0,0.00015683,2]
[419153880,1774955438969,-3139.69696217,0.00015684,2]
[419153881,1774955438981,-3445.30303783,0.00015684,2]
[419153882,1774955438990,-329.0,0.00015709,2]
[419153883,1774955439000,-150.0,0.00015712,2]
[419153884,1774955439009,-150.0,0.00015712,2]
[419153885,1774955439018,-150.0,0.00015712,2]
[419153886,1774955439028,-200.0,0.00015716,2]
[419153887,1774955439037,-1371.14003005,0.0001572,2]
[419153888,1774955439052,-199.85996995,0.0001572,2]
[419153889,1774955439062,-900.01130049,0.00015721,2]
[419153890,1774955439073,-99.98869951,0.00015721,2]
[419153891,1774955439082,-650.98804853,0.00015721,2]
[419153898,1774955440856,-2287.199,0.00015543,2]
[419153899,1774955440866,-349.01195147,0.00015721,2]
[419153900,1774955440875,-1000.0,0.00015721,2]
[419153901,1774955440884,-265.73269876,0.00015721,2]
[419153904,1774955443071,-869.97599114,0.0001568,2]
[419153905,1774955443081,-734.26730124,0.00015721,2]
[419153906,1774955443091,-1059.306,0.00015733,2]
[419153907,1774955443100,-303.74541447,0.00015739,2]
[419153919,1774955446573,-579.9839941,0.0001568,2]
[419153921,1774955446584,-130.25458553,0.00015739,2]
[419153923,1774955446594,-150.0,0.00015773,2]
[419153925,1774955446603,-166.66,0.00015777,2]
[419153927,1774955446612,-160.0,0.00015794,7]
[419153929,1774955446621,-325.386095,0.00015794,7]
[419153931,1774955446631,-490.77219,0.00015794,7]
[419153933,1774955446640,-434.0,0.00015834,2]
[419153934,1774955446649,-197.94127137,0.0001584,2]
[419153936,1774955446663,-4922.49316054,0.0001584,2]
[419153937,1774955446673,-787.0,0.0001584,2]
[419153938,1774955446682,-485.17761,0.0001584,2]
[419153939,1774955446692,-485.17761,0.0001584,2]
[419153940,1774955446701,-485.17762,0.0001585,2]
[419153941,1774955446710,-150.0,0.00015854,2]
[419153942,1774955446720,-485.8394,0.0001587,2]
[419153943,1774955446730,-7545.9869,0.0001587,2]
[419153944,1774955446739,-500.0,0.00015872,2]
[419153945,1774955446749,-3829.37,0.00015895,2]
[419153946,1774955446758,-1599.30127774,0.00015897,2]
[419153947,1774955446770,-1826.80243167,0.00015897,2]
[419153948,1774955446781,-386.25196548,0.00015897,2]
[419153949,1774955446854,-776.64432511,0.00015897,2]
[419153950,1774955446864,-1249.05567486,0.000159,2]
[419153951,1774955446875,-753.53307063,0.000159,2]
[419153952,1774955446891,-1873.74757026,0.000159,2]
[419153953,1774955477558,1238.67591119,0.00014082,2]
[419153955,1774956068324,-555.96176915,0.0001,2]
[419153956,1774956068345,-250.0,0.000105,2]
[419153957,1774956068368,-194.03823085,0.00010999,2]
[419153958,1774956068989,-1000.0,0.00010999,2]
[419153959,1774956069547,-5.96176915,0.00010999,2]
[419153960,1774956069571,-254.0,0.00010999,2]
[419153961,1774956069595,-300.0,0.00010999,2]
[419153962,1774956069618,-300.0,0.00010999,2]
[419153963,1774956069644,-140.03823085,0.00011,2]
[419153964,1774956069873,-1000.0,0.00011,2]
[419153965,1774956070183,-1000.0,0.00011,2]
[419153966,1774956070620,-1000.0,0.00011,2]
[419153967,1774956072012,-1000.0,0.00011,2]
[419153968,1774956072964,-859.96176915,0.00011,2]
[419153969,1774956072987,-140.03823085,0.00011,2]
[419153970,1774956073287,-459.96176915,0.00011,2]
[419153971,1774956073312,-300.92962121,0.00011,2]
[419153972,1774956073335,-239.10860964,0.00011,2]
[419153973,1774956073641,-10.89139036,0.00011,2]
[419153974,1774956073666,-181.51395588,0.00011605,2]
[419153975,1774956073689,-600.0,0.00011958,2]
[419153976,1774956073713,-207.59465376,0.00012068,2]
[419153977,1774956074533,-1000.0,0.00012068,2]
[419153978,1774956075591,-248.19534624,0.00012068,2]
[419153979,1774956075616,-167.75871712,0.00012068,2]
[419153980,1774956075639,-420.0,0.00012087,2]
[419153981,1774956075665,-164.04593664,0.00012099,2]
[419153982,1774956077343,-1000.0,0.00012099,2]
[419153983,1774956079930,-515.95406336,0.00012099,2]
[419153984,1774956079954,-250.0,0.00013,2]
[419153985,1774956102762,-181.48949012,0.00013098,2]
[419153986,1774956102784,-818.51050988,0.00013309,2]
[419153987,1774956105037,-1000.0,0.00013309,2]
[419153988,1774956107834,-532.48949012,0.00013309,2]
[419153989,1774956107857,-151.0,0.00013551,2]
[419153990,1774956266402,-300.82,0.00013699,2]
[419153991,1774956266427,-195.0,0.00013712,2]
[419153992,1774956266451,-434.78,0.00013724,2]
[419153993,1774956266474,-35.4,0.00013808,2]
[419153994,1774956425124,-1357.90092644,0.00013808,2]
[419153995,1774956435115,-405.62827716,0.00013808,2]
[419153997,1774956548075,-1201.0707964,0.00013808,2]
[419153998,1774956548100,-150.0,0.00013808,2]
[419153999,1774956548121,-300.82,0.00013808,2]
[419154000,1774956548151,-195.0,0.00013882,2]
[419154001,1774956548174,-166.66,0.00013957,2]
[419154002,1774956548197,-300.0,0.00014009,2]
[419154003,1774956548221,-1200.0,0.00014009,2]
[419154004,1774956548246,-300.0,0.00014009,2]
[419154005,1774956548269,-4975.90359646,0.0001401,2]
[419154006,1774956561244,-4568.4317,0.0001401,2]
[419154007,1774956565233,-201.40018071,0.0001401,2]
[419154019,1774956632172,-85.44415553,0.0001401,2]
[419154020,1774956632181,-61.32408881,0.00014082,2]
[419154021,1774956632191,-150.0,0.000142,2]
[419154022,1774956632200,-166.66,0.00014251,2]
[419154023,1774956632210,-4999.99,0.0001434,2]
[419154024,1774956632220,-6275.15,0.0001434,2]
[419154025,1774956632229,-150.0,0.0001434,2]
[419154026,1774956632239,-2000.0,0.00014341,2]
[419154027,1774956632248,-299.99,0.00014341,2]
[419154028,1774956632258,-499.99,0.00014341,2]
[419154029,1774956632267,-3180.4702976,0.00014341,2]
[419154030,1774956632279,-6819.5197024,0.00014341,2]
[419154031,1774956632288,-14482.63130582,0.00014341,2]
[419154032,1774956632311,-3683.98536227,0.00014341,2]
[419154033,1774956632385,-9512.71333191,0.00014341,2]
[419154035,1774956632395,-150.99,0.00014341,2]
[419154037,1774956632405,-150.99,0.00014341,2]
[419154039,1774956632414,-500.0,0.00014361,2]
[419154041,1774956632423,-1600.0,0.00014463,2]
[419154042,1774956632433,-164.83,0.00014521,2]
[419154044,1774956632442,-166.66,0.00014545,2]
[419154046,1774956632451,-10035.81666809,0.000146,2]
[419154049,1774956632463,-3338.3835452,0.000146,2]
[419154051,1774956632475,-3017.28071236,0.000146,2]
[419154053,1774956632486,-625.79807435,0.000146,2]
[419154055,1774956632495,-1378.43456065,0.00014627,2]
[419154065,1774956638176,-150.0,0.000146,2]
[419154066,1774956638186,-147.03308772,0.00014627,2]
[419154067,1774956638196,-200.0,0.00014691,2]
[419154068,1774956638205,-1273.93431351,0.00014732,2]
[419154070,1774956638217,-84.74568649,0.00014732,2]
[419154071,1774956638226,-166.66,0.00014838,2]
[419154072,1774956638235,-351.02365581,0.00014868,2]
[419154073,1774956638378,-411.14634419,0.00014868,2]
[419154074,1774956638387,-150.0,0.00014868,2]
[419154075,1774956638397,-150.0,0.00014868,2]
[419154076,1774956638407,-150.0,0.00014868,2]
[419154077,1774956638417,-150.0,0.00014868,2]
[419154078,1774956638428,-150.0,0.00014868,2]
[419154079,1774956638437,-150.0,0.00014868,2]
[419154080,1774956638447,-150.0,0.00014868,2]
[419154081,1774956638457,-150.0,0.00014868,2]
[419154082,1774956638467,-150.0,0.00014868,2]
[419154083,1774956638476,-150.0,0.00014868,2]
[419154084,1774956638487,-150.0,0.00014868,2]
[419154085,1774956638497,-150.0,0.00014868,2]
[419154086,1774956638506,-150.0,0.00014868,2]
[419154087,1774956638515,-179.62,0.00014958,2]
[419154088,1774956638524,-150.0,0.0001496,2]
[419154089,1774956638535,-500.0,0.00014968,2]
[419154090,1774956638545,-500.0,0.00014968,2]
[419154091,1774956638554,-500.0,0.00014968,2]
[419154092,1774956638564,-500.0,0.00014968,2]
[419154093,1774956638573,-500.0,0.00014968,2]
[419154094,1774956638582,-500.0,0.00014968,2]
[419154095,1774956638591,-500.0,0.00014968,2]
[419154096,1774956638600,-500.0,0.00014968,2]
[419154097,1774956638610,-248.9541322,0.00014968,2]
[419154098,1774956638619,-500.0,0.00014968,2]
[419154099,1774956638629,-500.0,0.00014968,2]
[419154100,1774956638638,-500.0,0.00014968,2]
[419154101,1774956638647,-500.0,0.00014968,2]
[419154102,1774956638656,-500.0,0.00014968,2]
[419154103,1774956638665,-500.0,0.00014968,2]
[419154104,1774956638674,-500.0,0.00014968,2]
[419154105,1774956638683,-500.0,0.00014968,2]
[419154106,1774956638692,-500.0,0.00014968,2]
[419154107,1774956638702,-500.0,0.00014968,2]
[419154108,1774956638711,-500.0,0.00014968,2]
[419154110,1774956638721,-500.0,0.00014968,2]
[419154112,1774956638730,-500.0,0.00014968,2]
[419154113,1774956638738,-500.0,0.00014968,2]
[419154115,1774956638748,-500.0,0.00014968,2]
[419154117,1774956638757,-500.0,0.00014968,2]
[419154119,1774956638767,-500.0,0.00014968,2]
[419154121,1774956638776,-500.0,0.00014968,2]
[419154123,1774956638785,-500.0,0.00014968,2]
[419154124,1774956638795,-500.0,0.00014968,2]
[419154126,1774956638803,-500.0,0.00014968,2]
[419154128,1774956638812,-500.0,0.00014968,2]
[419154130,1774956638822,-500.0,0.00014968,2]
[419154132,1774956638830,-500.0,0.00014968,2]
[419154133,1774956638839,-474.40897453,0.00014968,2]
[419154135,1774956638848,-28674.8523,0.00014968,2]
[419154137,1774956638857,-18911.0182491,0.00014969,2]
[419154140,1774956638873,-29139.75467702,0.00014969,2]
[419154155,1774956640466,-3350.0,0.00014969,2]
[419154156,1774956640520,-6719.54388614,0.00014969,2]
[419154157,1774956640576,-333.885,0.00014969,2]
[419154158,1774956640991,-75.75446582,0.00014969,2]
[419154159,1774956641003,-6720.0,0.00014969,2]
[419154197,1774956648002,-483.86279419,0.00014969,2]
[419154199,1774956648015,-2645.88364314,0.00014969,2]
[419154200,1774956648026,-552.40923268,0.00014969,2]
[419154201,1774956648038,-8845.06218872,0.00014969,2]
[419154202,1774956648072,-742.79429451,0.00014969,2]
[419154206,1774957634118,-159.18918241,0.00013993,2]
[419154207,1774957634141,-30.42814296,0.0001401,2]
[419154208,1774957754106,-250.0,0.00013,2]
[419154209,1774957754126,-175.91330646,0.00013993,2]
[419154210,1774957754148,-330.55185704,0.0001401,2]
[419154211,1774957754168,-209.14864848,0.00014064,2]
[419154212,1774957754189,-216.0,0.00014081,2]
[419154213,1774957754210,-300.0,0.00014081,2]
[419154214,1774957754230,-1200.0,0.00014081,2]
[419154215,1774957754251,-2900.0,0.00014082,2]
[419154216,1774957754271,-806.48851024,0.00014082,2]
[419154220,1774957832424,-1979.71839249,0.00014,2]
[419154221,1774957832434,-2900.0,0.00014082,2]
[419154222,1774957832444,-1100.0,0.00014082,2]
[419154223,1774957832453,-19529.1899,0.0001414,2]
[419154224,1774957832463,-300.0,0.00014299,2]
[419154225,1774957832473,-941.0,0.00014299,2]
[419154226,1774957832482,-195.0,0.000143,2]
[419154227,1774957832492,-2354.39192702,0.000143,2]
[419154228,1774957832503,-208.46,0.00014426,2]
[419154229,1774957832513,-3240.0,0.00014443,2]
[419154230,1774957832523,-611.77934941,0.00014485,2]
[419154231,1774957832533,-150.0,0.00014485,2]
[419154232,1774957832542,-200.0,0.00014486,2]
[419154233,1774957832551,-9999.99,0.00014486,2]
[419154234,1774957832561,-22931.52,0.00014486,2]
[419154235,1774957832570,-9999.99,0.00014486,2]
[419154236,1774957832580,-9999.99,0.00014486,2]
[419154237,1774957832589,-351.27,0.00014486,2]
[419154238,1774957832599,-299.99,0.00014486,2]
[419154239,1774957832608,-150.99,0.00014486,2]
[419154240,1774957832619,-3329.19,0.00014486,2]
[419154241,1774957832630,-2000.0,0.000145,2]
[419154242,1774957832642,-150.0,0.00014514,2]
[419154243,1774957832652,-1500.0,0.0001457,2]
[419154244,1774957832661,-150.0,0.00014622,2]
[419154245,1774957832671,-150.0,0.00014622,2]
[419154246,1774957832682,-150.0,0.00014622,2]
[419154247,1774957832691,-150.0,0.00014622,2]
[419154248,1774957832701,-150.0,0.00014622,2]
[419154249,1774957832711,-150.0,0.00014622,2]
[419154250,1774957832720,-150.0,0.00014622,2]
[419154251,1774957832730,-150.0,0.00014622,2]
[419154252,1774957832739,-150.0,0.00014622,2]
[419154253,1774957832751,-150.0,0.00014622,2]
[419154254,1774957832760,-733.0,0.00014714,2]
[419154255,1774957832769,-150.0,0.00014738,2]
[419154256,1774957832779,-461.5282217,0.00014746,2]
[419154257,1774957832791,-150.0,0.00014747,2]
[419154258,1774957832801,-61.02546278,0.00014747,2]
[419154259,1774957832815,-88.97453722,0.00014747,2]
[419154260,1774957832825,-150.0,0.00014784,2]
[419154261,1774957832834,-150.0,0.00014784,2]
[419154262,1774957832844,-150.0,0.00014784,2]
[419154263,1774957832852,-1205.508678,0.0001482,2]
[419154264,1774957832862,-166.67,0.00014838,2]
[419154266,1774957832871,-150.0,0.00014854,2]
[419154267,1774957832880,-179.37,0.00014858,2]
[419154268,1774957832889,-7355.8615,0.00014869,2]
[419154269,1774957832898,-150.0,0.00014872,2]
[419154270,1774957832907,-150.0,0.00014872,2]
[419154271,1774957832916,-150.0,0.000149,2]
[419154272,1774957832926,-174.61919141,0.00014929,2]
[419154273,1774957832935,-150.0,0.00014947,2]
[419154274,1774957832944,-150.0,0.00014947,2]
[419154275,1774957832954,-150.0,0.00014947,2]
[419154276,1774957832963,-500.0,0.0001496,2]
[419154277,1774957832972,-200.0,0.0001496,2]
[419154278,1774957832981,-200.0,0.0001496,2]
[419154279,1774957832991,-151.0,0.0001496,2]
[419154280,1774957833000,-151.0,0.0001496,2]
[419154281,1774957833010,-151.0,0.0001496,2]
[419154282,1774957833020,-151.0,0.0001496,2]
[419154283,1774957833030,-151.0,0.0001496,2]
[419154284,1774957833039,-3244.5018643,0.00014968,2]
[419154285,1774957833048,-5418.33347239,0.00014968,2]
[419154290,1774957840901,-531.92890896,0.00014968,2]
[419154291,1774957841152,-163.60331801,0.00014968,2]
[419154304,1774957841349,-1846.12408638,0.00014968,2]
[419154306,1774957841358,-582.41755,0.00014968,2]
[419154308,1774957841368,-150.0,0.0001497,2]
[419154309,1774957841377,-1486.42044186,0.0001499,2]
[419154331,1774957846433,-833.0,0.0001499,2]
[419154332,1774957846695,-6487.99999678,0.0001499,2]
[419154333,1774957846707,-1616.6,0.0001499,2]
[419154334,1774957846834,-1334.45186948,0.0001499,2]
[419154335,1774957846844,-173.5516458,0.00014993,2]
[419154336,1774957846854,-150.0,0.00014997,2]
[419154337,1774957846863,-150.0,0.00014997,2]
[419154338,1774957846873,-207.43247223,0.00015,15]
[419154339,1774957846883,-182.0,0.00015,15]
[419154340,1774957846893,-300.0,0.00015,2]
[419154341,1774957846903,-150.0,0.00015028,2]
[419154343,1774957846913,-500.0,0.0001505,2]
[419154344,1774957846923,-733.0,0.00015052,2]
[419154345,1774957846933,-150.0,0.00015086,2]
[419154346,1774957846944,-150.0,0.00015109,2]
[419154347,1774957846954,-150.0,0.00015109,2]